Cogmind - Beta 10.2 *** ADVENTURER MODE // 2021.03.19 @ 00:07:52 Player: Digit Result: Destroyed by as-28281 with Assembled Heavy Rifle Performance ------------- Evolutions (0) 0 Regions Visited (4) 800 Robots Destroyed (16) 80 Value Destroyed (486) 486 Prototype IDs (0) 0 Alien Tech Used (0) 0 Bonus (50) 50 TOTAL SCORE: 1416 Bonus ------- Follower Combat Kills 50 Cogmind --------- Core Integrity 0/250 Matter 275/300 Energy 119/125 System Corruption 0% Temperature Cool (2) Movement Walking (120) Location -9/Mines Parts ------- > --- POWER (1) -------- Light Ion Engine > --- PROPULSION (2) --- Aluminum Leg Aluminum Leg > --- UTILITY (2) ------ Targeting Computer Propulsion Shielding > --- WEAPON (2) ------- (None) > --- INVENTORY (4) ---- (None) Peak State ------------ > --- POWER ------------ Ion Engine > --- PROPULSION ------- Aluminum Leg Aluminum Leg > --- UTILITY ---------- Targeting Computer Medium Armor Plating > --- WEAPON ----------- Small Laser Assault Rifle > --- INVENTORY -------- Light Ion Engine Light Nuclear Core Aluminum Leg Propulsion Shielding [Rating: 8] Favorites ----------- Power Ion Engine Engine Ion Engine Propulsion Aluminum Leg Leg Aluminum Leg Wheel Wheel Utility Propulsion Shielding Processor Targeting Computer Protection Propulsion Shielding Weapon Light Assault Rifle Energy Gun Backup Laser I Ballistic Gun Light Assault Rifle Build | -11 -10 -10 -10 -9 ------- Run | Scr Mat Min Exi Min Slots Evolved . | . . . . . Power . | . . . . . Propulsion . | . . . . . Utility . | . . . . . Weapon . | . . . . . Parts Attached 20 | 5 7 2 . 6 Power 4 | 1 2 . . 1 Engine 4 | 1 2 . . 1 Core . | . . . . . Reactor . | . . . . . Propulsion 6 | 2 2 . . 2 Treads . | . . . . . Leg 4 | . 2 . . 2 Wheel 2 | 2 . . . . Hover . | . . . . . Flight . | . . . . . Utility 5 | . 3 . . 2 Device . | . . . . . Storage . | . . . . . Processor 2 | . 2 . . . Hackware . | . . . . . Protection 3 | . 1 . . 2 Artifact . | . . . . . Weapon 5 | 2 . 2 . 1 Energy Gun 1 | . . . . 1 Energy Cannon . | . . . . . Ballistic Gun 4 | 2 . 2 . . Ballistic Cannon . | . . . . . Launcher . | . . . . . Special Weapon . | . . . . . Impact Weapon . | . . . . . Slashing Weapon . | . . . . . Piercing Weapon . | . . . . . Special Melee Weapon . | . . . . . Unidentified Prototypes . | . . . . . Parts Lost 9 | . 1 2 . 6 Power 2 | . 1 . . 1 Propulsion 2 | . . . . 2 Utility 1 | . . . . 1 Weapon 4 | . . 2 . 2 Highest Loss Streak 5 | . 1 2 . 5 Average Slot Usage (%) 95 | . 95 100 100 85 Engine 12 | . 12 14 14 10 Leg 22 | . 11 28 28 27 Wheel 5 | . 16 . . . Processor 13 | . 12 14 14 14 Protection 12 | . 11 14 14 11 Energy Gun 1 | . 2 . . 3 Ballistic Gun 24 | . 25 27 28 17 Naked Turns . | . . . . . Heaviest Build 15 | 5 8 9 9 15 Greatest Support 20 | 20 20 20 20 20 Greatest Overweight (x) . | . . . . . Average Overweight (x) . | . . . . . Largest Inventory Capacity 4 | 4 4 4 4 4 Average Capacity 4 | 4 4 4 4 4 Most Carried 4 | 4 4 4 4 4 Average Carried 3 | 2 3 2 4 3 Final Capacity 4 | 4 4 4 4 4 Final Carried 4 | 4 3 4 4 . Class Distribution -------------------- 100% | Mutant Dominant Class ---------------- Mutant | -10/Materials Mutant | -10/Mines Mutant | -10/Exiles Mutant | -9/Mines Resources | -11 -10 -10 -10 -9 ----------- Run | Scr Mat Min Exi Min Matter Collected 509 | 256 100 84 . 69 Remotely . | . . . . . Salvage Created 537 | 50 197 185 . 105 Parts 31 | 4 12 12 . 3 Haulers Intercepted . | . . . . . Recyclers Shooed . | . . . . . Parts Field Recycled . | . . . . . Retrieved Matter . | . . . . . Parts Self-Destructed . | . . . . . Prevented . | . . . . . Kills | -11 -10 -10 -10 -9 ------- Run | Scr Mat Min Exi Min Combat Hostiles Destroyed 15 | 1 4 7 . 3 Guns 15 | 1 4 7 . 3 Classes Destroyed 5 | 2 1 1 . 1 Worker 1 | 1 . . . . Watcher 1 | . 1 . . . Swarmer 3 | . . 3 . . Grunt 11 | 1 4 4 . 2 Assembled 1 | . . . . 1 Best Kill Streak 5 | 1 5 5 . 2 Combat Bots Only 5 | 1 4 5 . 2 Max Kills in Single Turn 2 | 1 1 2 . 1 Gunslinging 1 | . . 1 . . Exploded . | . . . . . Melee . | . . . . . Uniques/NPCs Destroyed . | . . . . . Combat | -11 -10 -10 -10 -9 -------- Run | Scr Mat Min Exi Min Damage Taken 1182 | 17 338 192 . 635 Core 255 | 17 84 9 . 145 Absorbed by Shields . | . . . . . Core Remaining (%) 93 | 93 . . . . Volleys Fired 55 | 5 18 19 . 13 Largest 2 | 2 2 2 . 2 Hottest 60 | 40 40 50 . 60 Shots Fired 110 | 10 36 38 . 26 Gun 110 | 10 36 38 . 26 Cannon . | . . . . . Launcher . | . . . . . Special . | . . . . . Kinetic 104 | 10 36 35 . 23 Thermal 6 | . . 3 . 3 Explosive . | . . . . . Electromagnetic . | . . . . . Robot Hit Streak 35 | 9 34 35 . 18 Robot Miss Streak 2 | . 1 1 . 2 Penetration Max . | . . . . . Secondary Targets 7 | . 3 4 . . Max Gunslinging Chain 1 | . 1 1 . . Shots Hit Robots 99 | 9 34 35 . 21 Core Hits 43 | 4 16 14 . 9 Critical Hits 1 | . 1 . . . Critical Kills . | . . . . . Critical Parts Destroyed 1 | . 1 . . . Melee Attacks . | . . . . . Impact . | . . . . . Slashing . | . . . . . Piercing . | . . . . . Sneak Attacks . | . . . . . Combat Hostiles . | . . . . . Follow-up Attacks . | . . . . . Damage Inflicted 900 | 68 270 353 . 209 Guns 894 | 68 266 353 . 207 Cannons . | . . . . . Explosions . | . . . . . Melee . | . . . . . Ramming 6 | . 4 . . 2 Kinetic 847 | 68 266 327 . 186 Thermal 47 | . . 26 . 21 Explosive . | . . . . . Electromagnetic . | . . . . . Impact . | . . . . . Slashing . | . . . . . Piercing . | . . . . . Highest Corruption . | . . . . . Average Corruption . | . . . . . Corruption Purged . | . . . . . Overload Shots . | . . . . . Overflow Damage . | . . . . . Projectiles . | . . . . . Explosions . | . . . . . Melee . | . . . . . Knockbacks . | . . . . . Impact . | . . . . . Kinetic . | . . . . . Secondary . | . . . . . Self-Inflicted Damage 2 | . 1 . . 1 Shots . | . . . . . Rammed 3 | . 2 . . 1 Targets Rammed 3 | . 2 . . 1 Kicked . | . . . . . Crushed . | . . . . . Highest Temperature 47 | 6 34 29 . 47 Average Temperature 11 | 6 10 9 . 14 Received Heat Transfer 521 | 12 252 126 . 131 Siege Activations . | . . . . . Robots Corrupted . | . . . . . Combat Hostiles . | . . . . . Parts Fried . | . . . . . Impact Corruptions . | . . . . . Robots Melted . | . . . . . Combat Hostiles . | . . . . . Parts Melted . | . . . . . Heat Transferred 161 | . . 111 . 50 Parts Sabotaged . | . . . . . Parts Stolen . | . . . . . Parts Stripped . | . . . . . Power Chain Reactions . | . . . . . Missiles Intercepted . | . . . . . Alert | -11 -10 -10 -10 -9 ------- Run | Scr Mat Min Exi Min Peak Influence 195 | 25 138 195 . 91 Initial 45 | . 13 45 . . Average 64 | 2 80 89 . 34 Maximum Alert Level . | . . . . . Low Security (%) 100 | 100 100 100 . 100 Level 1 . | . . . . . Level 2 . | . . . . . Level 3 . | . . . . . Level 4 . | . . . . . Level 5 . | . . . . . High Security . | . . . . . Max Security . | . . . . . Squads Dispatched 2 | . 1 . . 1 Investigation 1 | . 1 . . . Extermination . | . . . . . Reinforcement . | . . . . . Assault 1 | . . . . 1 Garrison . | . . . . . Intercept . | . . . . . Construction Impeded . | . . . . . Haulers Reinforced . | . . . . . Stealth | -11 -10 -10 -10 -9 --------- Run | Scr Mat Min Exi Min Distress Signals 1 | . 1 . . . Communications Jammed . | . . . . . Distress Signals . | . . . . . Times Spotted 37 | 1 8 7 . 21 Peak Tracking Total 13 | 1 5 4 . 13 Tactical Retreats . | . . . . . Traps | -11 -10 -10 -10 -9 ------- Run | Scr Mat Min Exi Min Traps Triggered 1 | . 1 . . . Indirectly . | . . . . . Trap Hack Attempts . | . . . . . Triggered . | . . . . . Disarmed . | . . . . . Reprogrammed . | . . . . . Reused . | . . . . . Traps Extracted . | . . . . . Installed . | . . . . . Triggered . | . . . . . Machines | -11 -10 -10 -10 -9 ---------- Run | Scr Mat Min Exi Min Machines Disabled . | . . . . . Max in Single Turn . | . . . . . Machines Sabotaged . | . . . . . Garrisons Compromised . | . . . . . Overloaded Fab Kills . | . . . . . Fab Network Shutdowns . | . . . . . Hacking | -11 -10 -10 -10 -9 --------- Run | Scr Mat Min Exi Min Machines Accessed 2 | . 2 . . . Terminals 1 | . 1 . . . Fabricators . | . . . . . Repair Stations 1 | . 1 . . . Recycling Units . | . . . . . Scanalyzers . | . . . . . Garrison Access . | . . . . . Total Hacks 6 | . 6 . . . Successful 5 | . 5 . . . Failed 1 | . 1 . . . Catastrophic . | . . . . . Database Lockouts . | . . . . . Manual . | . . . . . Terminals 2 | . 2 . . . Fabricators . | . . . . . Repair Stations 4 | . 4 . . . Recycling Units . | . . . . . Scanalyzers . | . . . . . Garrison Access . | . . . . . Terminal Hacks 2 | . 2 . . . Record 2 | . 2 . . . Fabricator Hacks . | . . . . . Repair Station Hacks 3 | . 3 . . . Scan Component 1 | . 1 . . . Repair 1 | . 1 . . . Refit 1 | . 1 . . . Recycling Unit Hacks . | . . . . . Scanalyzer . | . . . . . Garrison Access Hacks . | . . . . . Unauthorized Hacks . | . . . . . Terminals . | . . . . . Fabricators . | . . . . . Repair Stations . | . . . . . Recycling Units . | . . . . . Scanalyzers . | . . . . . Garrison Access . | . . . . . Data Cores Recovered . | . . . . . Used . | . . . . . Hacking Detections 1 | . 1 . . . Full Trace Events . | . . . . . Feedback Events . | . . . . . Feedback Blocked . | . . . . . Robot Schematics Acquired . | . . . . . Robots Built . | . . . . . Matter . | . . . . . Time . | . . . . . Total Robot Build Rating . | . . . . . Part Schematics Acquired . | . . . . . Parts Built . | . . . . . Matter . | . . . . . Time . | . . . . . Total Part Build Rating . | . . . . . Parts Repaired 1 | . 1 . . . Time 26 | . 26 . . . Parts Recycled . | . . . . . Recycled Matter . | . . . . . Retrieved Matter . | . . . . . Retrieved Components . | . . . . . Parts Scanalyzed . | . . . . . Part Schematics Acquired . | . . . . . Parts Damaged . | . . . . . Bothacking | -11 -10 -10 -10 -9 ------------ Run | Scr Mat Min Exi Min Used RIF Installer . | . . . . . Robots Hacked . | . . . . . Non-combat . | . . . . . Combat . | . . . . . Robot Hacks Applied . | . . . . . Relay Couplers Released . | . . . . . Robots Rewired . | . . . . . Allies Hacked . | . . . . . Hacks Repelled . | . . . . . Allies | -11 -10 -10 -10 -9 -------- Run | Scr Mat Min Exi Min Total Allies 1 | . . . . 1 Largest Group 1 | . . . . 1 Highest-Rated Group 31 | . . . . 31 Highest-Rated Ally 31 | . . . . 31 Total Orders . | . . . . . Ally Attacks 8 | . . . . 8 Total Damage 166 | . . . . 166 Kills 2 | . . . . 2 Allies Corrupted . | . . . . . Allies Melted . | . . . . . Intel | -11 -10 -10 -10 -9 ------- Run | Scr Mat Min Exi Min Robot Analysis Total . | . . . . . Derelict Logs Recovered 2 | . . 2 . . Drone Launches . | . . . . . Drone Recoveries . | . . . . . Exploration | -11 -10 -10 -10 -9 ------------- Run | Scr Mat Min Exi Min Turns Passed 937 | 117 246 333 62 179 Spaces Moved 690 | 118 185 226 52 109 Core 17 | 17 . . . . Treads . | . . . . . Legs 464 | . 77 226 52 109 Wheels 209 | 101 108 . . . Hover . | . . . . . Flight . | . . . . . Fastest Speed 50 | 50 80 120 120 120 Average Speed 106 | 75 96 120 120 120 Slowest Speed 120 | 80 120 120 120 120 Overloaded Moves . | . . . . . Propulsion Burnouts . | . . . . . Robots Hopped . | . . . . . Cave-ins Triggered . | . . . . . Exploration Rate (%) 21 | 5 27 44 9 24 Regions Visited 4 Branch Regions 3 Pre-discovered Areas 2 | . . 1 . 1 Known Exits Taken . | . . . . . Unknown Exits Taken 4 | 1 1 1 1 . Scrap Searched 2 | . . 1 . 1 Spaces Dug . | . . . . . Terrain Destroyed . | . . . . . Melee . | . . . . . Projectile . | . . . . . AOE . | . . . . . Terrain Rammed . | . . . . . Walls Destroyed . | . . . . . Machines Disabled . | . . . . . Actions | -11 -10 -10 -10 -9 --------- Run | Scr Mat Min Exi Min Total 801 | 137 224 254 51 135 Wait 10 | . 7 3 . . Move 687 | 118 184 225 51 109 Hop . | . . . . . Pick Up 18 | 9 2 4 . 3 Fast Attach 3 | . 3 . . . Attach 15 | 5 3 2 . 5 Detach . | . . . . . Swap 2 | . 1 . . 1 Drop 8 | . 4 1 . 3 Fire 55 | 5 18 19 . 13 Melee . | . . . . . Ram 2 | . 2 . . . Kick 1 | . . . . 1 Crush . | . . . . . Escape Stasis . | . . . . . Rewire . | . . . . . Trap . | . . . . . Miscellaneous . | . . . . . Route ------- -11/Scrapyard -10/Materials -10/Mines -10/Exiles -9/Mines History --------- Turn | Location | Event 2 | -11/Scrapyard | Met Revision 17 98 | -11/Scrapyard | Discovered new exit (range 8) 118 | -11/Scrapyard | Entered Materials 309 | -10/Materials | Discovered new exit (range 15) 311 | -10/Materials | Build established: Mutant 345 | -10/Materials | Repaired Lgt. Assault Rifle 364 | -10/Materials | Entered Mines 545 | -10/Mines | Learned 2 Materials zone layouts 611 | -10/Mines | Deemed a non-threat by the Exiles lab entrance 611 | -10/Mines | Discovered new exit (range 5) 697 | -10/Mines | Entered Exiles 723 | -10/Exiles | Discovered new exit (range 15) 759 | -10/Exiles | Entered Mines 772 | -9/Mines | Met a Derelict bent on vengeance 783 | -9/Mines | Met a Derelict testing a Signal Generator 819 | -9/Mines | Core integrity fell below 50% 867 | -9/Mines | Assembled infested the area 909 | -9/Mines | Core integrity fell below 20% 923 | -9/Mines | Lost 5 parts (1p1n1u2w) 938 | -9/Mines | Learned location of Storage (-8) 938 | -9/Mines | Destroyed by as-28281 with Assembled Heavy Rifle Last Messages --------------- Aluminum Leg destroyed. as-22629 destroyed. as-63741 destroyed. as-76427 destroyed. as-84520 destroyed. D-53 Grenadier destroyed. as-46729 destroyed. The unstable cave ceiling collapses. K-01 Serf collects debris. D-53 Grenadier destroyed. Acquired Aluminum Leg. Acquired 10 matter. Slammed into T-07 Excavator. Aluminum Leg destroyed. A derelict emerges from the shadows: "Are any of them following you? I'm here trying to lose some heat after our second raid on Storage failed. Whatever you do stay away from that place, they've tightened security following our previous successful raids." World map updated: -8/Storage. [Achievement: First Step to Greatness] Map ----- +----------------------------------------------------+ | ???????????# #????????## ##?????????????????????? | | ???????????# ####??????####??????????????????????? | | ##?????????# ## ##???????????????????????????????? | | # ##???????# ## #???????????????????????????????? | | ###?#### # #???????????????????????????????? | | ### ##??????????????????????????????? | | ## #??????????????????????????????? | | ## ## #??????????????????????????????? | | ## ### #??????????????????????????????? | | # #?# #??????????????????????????????? | | ## #?# #??????????????????????????????? | | %% [ #### ##??????????????????????????????? | | # #[ #?####???????????????????????????????? | | ## # ## % #????????????????????????????????????? | | ?### !###% ##?####???????????????????????????????? | | ???# ### #?? ????????????????????????????????? | | ???# %### #?????????????????????????????????? | | ???# #???????????????????? ???????????? | | ???##### ## ##??????????????????? ??????????? | | ???????# ## #?????????????????? ??????????? | | ???????## ### #########????????? #??????????? | | ????????# #?# % #???##### #??????????? | | ????????# #?######### #?##g #??????????? | | ????????# #?????????# #?# #??????????? | | ????????# #?????????#a### #??????????????? | | ???????? #?????????# a @ #???????????????? | | ????????##??????????###### ######???????????????? | | ??????????????????????????###????????????????????? | | ?????????????????????????????????????????????????? | | | | | | | | | | | | | | | | | | | | | | | | | | | | | | | | | | | | | | | | | | | +----------------------------------------------------+ Best States ------------- Heat Dissipation 25 Energy Generation 10 Energy Capacity 250 Matter Stores 300 Matter Capacity 300 Sight Range 16 Terrain Scan Density 60 Armor Coverage 225 Resistance: KI 20 Resistance: TH 20 Resistance: EX 20 Resistance: EM 20 Resistance: I 20 Resistance: S 20 Resistance: P 20 Propulsion Shielding 33 Evasion (%) 50 Targeting Accuracy 5 Offensive Hacking 10 Item Schematics ----------------- None Robot Schematics ------------------ None Fabricated ------------ Nothing Alien Tech Used ----------------- None Achievements -------------- Crack Shot First Step to Greatness Part-time Mechanic Tourist Challenges ------------ None Game ------ Seed CoilPotentialBoosters Manual? 0 Play Time 00:35:37 Cumulative 1.1 hours Start 2021.03.18 @ 23:28:14 End 2021.03.19 @ 00:07:52 Sessions 1 Manual Loads 0 Difficulty Adventurer Special Mode None Game No. 2 Rogue 1 Adventurer 1 Explorer 0 Win Type - Total 0 Types 0/0/0/0/0/0/0/0/0 Lore% 0 Gallery% 2 Achievement% 3 Wizard Run 0 Options --------- ASCII 0 Keyboard 0 Movement Mouse Keybinds 0 Fullscreen 1 Font 18/SmallcapsGlow Map View 76x50 Tactical HUD 0 Map Filters NONE Filters NONE Steam 1 RUN: b4eab8ce-a3e5-4d30-8d8a-5c33fc5257a9